[Event "I Liga Centralne Srbije"]
[Site "Bajina Bašta, Serbia"]
[Date "2020.10.13"]
[Round "6.3"]
[White "Popovic, Nenad"]
[Black "Milic, Slobodan"]
[Result "1-0"]
[ECO "D30"]
[WhiteElo "2249"]
[BlackElo "1888"]
[Annotator "Knez"]
[PlyCount "79"]
[EventDate "2020.??.??"]
[TimeControl "90"]
[WhiteClock "0:00:31"]
[BlackClock "0:35:26"]

1. d4 {[%emt 0:00:00]} d5 {[%emt 0:00:00]} 2. c4 {[%emt 0:00:00]} c6 {[%emt 0:
00:00]} 3. e3 {[%emt 0:00:00]} Nf6 {[%emt 0:00:00]} 4. Bd3 {[%emt 0:00:00]} e6
{[%emt 0:00:00]} 5. Nd2 {[%emt 0:00:00]} Be7 {[%emt 0:00:00]} 6. Ngf3 {[%emt 0:
00:00]} Nbd7 {[%emt 0:00:00]} 7. Qc2 {[%emt 0:00:00]} dxc4 {[%emt 0:00:00]} 8.
Nxc4 {[%emt 0:00:00]} c5 {[%emt 0:00:00]} 9. b3 {[%emt 0:00:00]} cxd4 {[%emt 0:
00:00]} 10. Nxd4 {[%emt 0:00:00]} Bb4+ {[%emt 0:00:00]} 11. Kf1 {[%emt 0:00:00]
} O-O {[%emt 0:00:00]} 12. a3 {[%emt 0:00:00]} Be7 {[%emt 0:00:00]} 13. Bb2 {
[%emt 0:00:00]} a6 {[%emt 0:00:00]} 14. b4 {[%emt 0:00:00]} Qc7 {[%emt 0:00:00]
} 15. Qb3 {[%emt 0:00:00]} b5 {[%emt 0:00:00]} 16. Na5 {[%emt 0:00:00]} Nb6 {
[%emt 0:00:00]} 17. Rc1 {[%emt 0:00:00]} Qd7 {[%emt 0:00:00]} 18. Rd1 {[%emt 0:
00:00]} Qe8 {[%emt 0:00:00]} 19. Nf3 {[%emt 0:00:00]} Bd7 {[%emt 0:00:44]} 20.
Bd4 {[%emt 0:00:00]} Nbd5 {[%emt 0:00:00]} 21. g3 {[%emt 0:00:00]} Bd8 {
[%emt 0:00:00]} 22. Nb7 {[%emt 0:00:00]} Bb6 {[%emt 0:00:00]} 23. e4 {[%emt 0:
00:00]} Bxd4 {[%emt 0:00:00]} 24. Nxd4 {[%emt 0:00:00]} Ne7 {[%emt 0:00:04]}
25. Nc5 {[%emt 0:00:00]} Nc6 {[%emt 0:00:10]} 26. Ne2 {[%emt 0:00:00]} Rd8 {
[%emt 0:00:01]} 27. Nxa6 {[%emt 0:00:00]} Ne5 {[%emt 0:00:00]} 28. Bb1 {
[%emt 0:00:00]} Bc6 {[%emt 0:00:00]} 29. Nc5 {[%emt 0:00:00]} Qe7 {[%emt 0:00:
00]} 30. Nd4 {[%emt 0:00:00]} Ba8 {[%emt 0:00:00]} 31. Kg2 {[%emt 0:00:00]}
Nfd7 {[%emt 0:00:00]} 32. f4 {[%emt 0:00:00]} Ng4 {[%emt 0:00:00]} 33. Qc3 {
[%emt 0:00:00]} Nxc5 {[%emt 0:00:59]} 34. bxc5 {[%emt 0:00:00]} Rc8 {[%emt 0:
00:00]} 35. Rc1 {[%emt 0:00:00]} Rfd8 {[%emt 0:00:00]} 36. Nxb5 {[%emt 0:00:00]
} f5 {[%emt 0:00:00]} 37. Nd6 {[%emt 0:00:00]} Rc7 {[%emt 0:00:00]} 38. Rhe1 {
[%emt 0:00:00]} g5 {[%emt 0:00:00]} 39. Nxf5 {[%emt 0:00:00]} Qf8 {[%emt 0:00:
00]} 40. Ba2 {[%emt 0:00:00]} 1-0

[Event "I Liga Centralne Srbije"]
[Site "Bajina Bašta, Serbia"]
[Date "2020.10.13"]
[Round "6.4"]
[White "Dimitrov, Radoslav"]
[Black "Brenjo, Slavisa"]
[Result "0-1"]
[ECO "A01"]
[WhiteElo "2507"]
[BlackElo "2412"]
[Annotator "Knez"]
[PlyCount "146"]
[EventDate "2020.??.??"]
[TimeControl "90"]
[WhiteClock "0:01:05"]
[BlackClock "0:02:53"]

1. b3 {[%emt 0:00:00]} e5 {[%emt 0:00:00]} 2. Bb2 {[%emt 0:00:00]} Nc6 {
[%emt 0:00:00]} 3. e3 {[%emt 0:00:00]} d5 {[%emt 0:00:00]} 4. Bb5 {[%emt 0:00:
00]} f6 {[%emt 0:00:00]} 5. c4 {[%emt 0:00:00]} Nge7 {[%emt 0:00:00]} 6. d4 {
[%emt 0:00:00]} exd4 {[%emt 0:00:00]} 7. exd4 {[%emt 0:00:00]} a6 {[%emt 0:00:
00]} 8. Ba4 {[%emt 0:00:00]} Nf5 {[%emt 0:00:00]} 9. Ne2 {[%emt 0:00:00]} dxc4
{[%emt 0:00:00]} 10. bxc4 {[%emt 0:00:00]} Bb4+ {[%emt 0:00:00]} 11. Nbc3 {
[%emt 0:00:00]} O-O {[%emt 0:00:00]} 12. a3 {[%emt 0:00:00]} Ba5 {[%emt 0:00:
00]} 13. d5 {[%emt 0:00:00]} Ne5 {[%emt 0:00:00]} 14. Bb3 {[%emt 0:00:00]} c5 {
[%emt 0:00:00]} 15. Nf4 {[%emt 0:00:00]} Nd6 {[%emt 0:00:00]} 16. Ne6 {[%emt 0:
00:00]} Bxe6 {[%emt 0:00:00]} 17. dxe6 {[%emt 0:00:00]} Ne4 {[%emt 0:00:00]}
18. Qc2 {[%emt 0:00:00]} Nxc3 {[%emt 0:00:00]} 19. Bxc3 {[%emt 0:00:00]} Qd4 {
[%emt 0:00:00]} 20. Bxa5 {[%emt 0:00:00]} Qxa1+ {[%emt 0:00:00]} 21. Qd1 {
[%emt 0:00:00]} Qxd1+ {[%emt 0:00:00]} 22. Kxd1 {[%emt 0:00:00]} Rfe8 {[%emt 0:
00:00]} 23. f4 {[%emt 0:00:00]} Nc6 {[%emt 0:00:00]} 24. Bb6 {[%emt 0:00:00]}
Nd4 {[%emt 0:00:00]} 25. Ba4 {[%emt 0:00:00]} Rxe6 {[%emt 0:00:00]} 26. Bxc5 {
[%emt 0:00:00]} Rd8 {[%emt 0:00:00]} 27. Kc1 {[%emt 0:00:00]} b5 {[%emt 0:00:
37]} 28. Bd1 {[%emt 0:00:00]} bxc4 {[%emt 0:00:00]} 29. Kb2 {[%emt 0:00:00]}
Ne2 {[%emt 0:00:00]} 30. g3 {[%emt 0:00:00]} Rd2+ {[%emt 0:00:00]} 31. Bc2 {
[%emt 0:00:00]} Rc6 {[%emt 0:00:11]} 32. Be3 {[%emt 0:00:00]} Rd8 {[%emt 0:00:
00]} 33. Re1 {[%emt 0:00:00]} c3+ {[%emt 0:00:00]} 34. Ka2 {[%emt 0:00:00]} Nd4
{[%emt 0:00:00]} 35. Rd1 {[%emt 0:00:29]} Rb6 {[%emt 0:00:00]} 36. Bc1 {
[%emt 0:00:00]} Rdd6 {[%emt 0:00:00]} 37. Bd3 {[%emt 0:00:00]} Kf8 {[%emt 0:00:
00]} 38. Bc4 {[%emt 0:00:27]} Rbc6 {[%emt 0:00:00]} 39. Bf1 {[%emt 0:00:00]} c2
{[%emt 0:00:00]} 40. Rd3 {[%emt 0:00:00]} Nb5 {[%emt 0:00:00]} 41. a4 {[%emt 0:
00:00]} Nc3+ {[%emt 0:00:00]} 42. Kb3 {[%emt 0:00:00]} Ne4 {[%emt 0:00:00]} 43.
Rxd6 {[%emt 0:00:00]} Rxd6 {[%emt 0:00:00]} 44. Kxc2 {[%emt 0:00:01]} Rc6+ {
[%emt 0:00:00]} 45. Kb2 {[%emt 0:00:00]} Nc5 {[%emt 0:00:00]} 46. a5 {[%emt 0:
00:00]} Na4+ {[%emt 0:00:00]} 47. Kb1 {[%emt 0:00:00]} Nc3+ {[%emt 0:00:00]}
48. Kb2 {[%emt 0:00:00]} Na4+ {[%emt 0:00:00]} 49. Kb1 {[%emt 0:00:00]} Ke7 {
[%emt 0:00:00]} 50. Bg2 {[%emt 0:00:00]} Rc3 {[%emt 0:00:00]} 51. Bd2 {[%emt 0:
00:00]} Rb3+ {[%emt 0:00:00]} 52. Kc1 {[%emt 0:00:00]} Kd6 {[%emt 0:00:00]} 53.
Be4 {[%emt 0:00:00]} Kc5 {[%emt 0:00:00]} 54. Bxh7 {[%emt 0:00:00]} Kd4 {
[%emt 0:00:01]} 55. Bf5 {[%emt 0:00:00]} Nc5 {[%emt 0:00:00]} 56. Kc2 {[%emt 0:
00:00]} Ra3 {[%emt 0:00:00]} 57. Kd1 {[%emt 0:00:00]} Ra1+ {[%emt 0:00:00]} 58.
Ke2 {[%emt 0:00:00]} Ra2 {[%emt 0:00:00]} 59. Ke1 {[%emt 0:00:00]} Ne4 {
[%emt 0:00:00]} 60. Bb4 {[%emt 0:00:01]} Ke3 {[%emt 0:00:00]} 61. Kf1 {[%emt 0:
00:00]} Kf3 {[%emt 0:00:00]} 62. Bxe4+ {[%emt 0:00:00]} Kxe4 {[%emt 0:00:00]}
63. h4 {[%emt 0:00:00]} Kf3 {[%emt 0:00:00]} 64. Ke1 {[%emt 0:00:00]} Kxg3 {
[%emt 0:00:00]} 65. Bf8 {[%emt 0:00:00]} Kxh4 {[%emt 0:00:00]} 66. Bxg7 {
[%emt 0:00:00]} f5 {[%emt 0:00:00]} 67. Bc3 {[%emt 0:00:00]} Kg4 {[%emt 0:00:
00]} 68. Bd2 {[%emt 0:00:00]} Kf3 {[%emt 0:00:00]} 69. Kd1 {[%emt 0:00:00]} Ke4
{[%emt 0:00:00]} 70. Kc1 {[%emt 0:00:00]} Kd3 {[%emt 0:00:00]} 71. Bb4 {
[%emt 0:00:00]} Ra4 {[%emt 0:00:00]} 72. Bd2 {[%emt 0:00:00]} Ra1+ {[%emt 0:00:
00]} 73. Kb2 {[%emt 0:00:00]} Kxd2 {[%emt 0:00:00]} 0-1

[Event "I Liga Centralne Srbije"]
[Site "Bajina Bašta, Serbia"]
[Date "2020.10.13"]
[Round "6.4"]
[White "Savic, Miodrag R"]
[Black "Vratonjic, Slobo"]
[Result "1/2-1/2"]
[ECO "B07"]
[WhiteElo "2433"]
[BlackElo "2341"]
[Annotator "Knez"]
[PlyCount "36"]
[EventDate "2020.??.??"]
[TimeControl "90"]
[WhiteClock "0:46:34"]
[BlackClock "0:40:00"]

1. e4 {[%emt 0:00:00]} c5 {[%emt 0:00:00]} 2. c3 {[%emt 0:00:00]} d6 {[%emt 0:
00:00]} 3. d4 {[%emt 0:00:00]} Nf6 {[%emt 0:00:00]} 4. Bd3 {[%emt 0:00:00]} g6
{[%emt 0:00:00]} 5. Nf3 {[%emt 0:00:00]} Bg7 {[%emt 0:00:00]} 6. O-O {[%emt 0:
00:00]} O-O {[%emt 0:00:00]} 7. Re1 {[%emt 0:00:00]} a6 {[%emt 0:00:00]} 8. h3
{[%emt 0:00:00]} Qc7 {[%emt 0:06:50]} 9. e5 {[%emt 0:00:00]} Nfd7 {[%emt 0:00:
00]} 10. e6 {[%emt 0:00:00]} fxe6 {[%emt 0:00:00]} 11. Ng5 {[%emt 0:00:00]} Nf6
{[%emt 0:00:00]} 12. Qe2 {[%emt 0:00:00]} Kh8 {[%emt 0:00:00]} 13. Nxe6 {
[%emt 0:00:00]} Bxe6 {[%emt 0:00:00]} 14. Qxe6 {[%emt 0:00:00]} cxd4 {[%emt 0:
00:00]} 15. Qxe7 {[%emt 0:00:00]} Nbd7 {[%emt 0:00:00]} 16. Qe2 {[%emt 0:00:00]
} Nb8 {[%emt 0:03:27]} 17. Qe7 {[%emt 0:00:25]} Nbd7 {[%emt 0:00:05]} 18. Qe6 {
[%emt 0:00:04]} Nb8 {[%emt 0:00:00]} 1/2-1/2

[Event "I Liga Centralne Srbije"]
[Site "Bajina Bašta, Serbia"]
[Date "2020.10.13"]
[Round "6.4"]
[White "Radovanovic, Jovica"]
[Black "Ravic, Nenad"]
[Result "1-0"]
[ECO "E63"]
[WhiteElo "2303"]
[BlackElo "2241"]
[Annotator "Knez"]
[PlyCount "75"]
[EventDate "2020.??.??"]
[TimeControl "90"]

1. d4 {[%emt 0:18:04]} Nf6 {[%emt 0:01:29]} 2. Nf3 {[%emt 0:00:28]} g6 {
[%emt 0:00:05]} 3. c4 {[%emt 0:00:26]} Bg7 {[%emt 0:00:04]} 4. g3 {[%emt 0:00:
37]} O-O {[%emt 0:00:04]} 5. Bg2 {[%emt 0:00:02]} d6 {[%emt 0:00:04]} 6. O-O {
[%emt 0:00:10]} a6 {[%emt 0:00:04]} 7. Nc3 {[%emt 0:00:09]} Nc6 {[%emt 0:00:05]
} 8. h3 {[%emt 0:00:43]} Rb8 {[%emt 0:00:05]} 9. e4 {[%emt 0:00:14]} b5 {
[%emt 0:00:04]} 10. e5 dxe5 11. dxe5 Qxd1 12. Rxd1 Nd7 13. cxb5 axb5 14. Be3
Nb6 15. Nxb5 Nc4 16. Na7 Nxe3 17. Nxc6 Nxd1 18. Nxb8 Nxb2 19. Nc6 Re8 20. Rb1
Nc4 21. Rb4 Be6 22. a4 Bd5 23. a5 e6 24. Nfd4 Bf8 {[%emt 2:28:23]} 25. Bxd5
exd5 26. Rb7 Bc5 27. a6 Bb6 28. a7 Kf8 29. Nb5 {[%emt 0:30:27]} Bxa7 {[%emt 0:
00:36]} 30. Rxa7 {[%emt 0:09:35]} Nxe5 {[%emt 0:00:12]} 31. Nxe5 {[%emt 0:00:
19]} Rxe5 {[%emt 0:00:02]} 32. Rxc7 {[%emt 0:00:07]} Re1+ {[%emt 0:01:09]} 33.
Kg2 {[%emt 0:00:05]} Rd1 {[%emt 0:01:30]} 34. Nd6 {[%emt 0:00:42]} f5 {[%emt 0:
00:43]} 35. Rxh7 {[%emt 0:00:22]} d4 {[%emt 0:00:07]} 36. Rf7+ {[%emt 0:00:27]}
Kg8 {[%emt 0:00:02]} 37. Rd7 {[%emt 0:00:15]} d3 {[%emt 0:00:09]} 38. Nc4 {
[%emt 0:00:58]} 1-0

[Event "I Liga Centralne Srbije"]
[Site "Bajina Bašta, Serbia"]
[Date "2020.10.13"]
[Round "6.4"]
[White "Djakovac, Enes"]
[Black "Ilic, Dragan"]
[Result "1/2-1/2"]
[ECO "C04"]
[WhiteElo "2165"]
[BlackElo "2291"]
[Annotator "Knez"]
[PlyCount "51"]
[EventDate "2020.??.??"]
[TimeControl "90"]
[WhiteClock "0:15:02"]
[BlackClock "0:38:17"]

1. e4 {[%emt 0:00:00]} e6 {[%emt 0:00:00]} 2. d4 {[%emt 0:00:00]} d5 {[%emt 0:
00:00]} 3. Nd2 {[%emt 0:00:00]} Nc6 {[%emt 0:00:00]} 4. Ngf3 {[%emt 0:00:00]}
Nf6 {[%emt 0:00:00]} 5. e5 {[%emt 0:00:00]} Nd7 {[%emt 0:00:00]} 6. Be2 {
[%emt 0:00:00]} f6 {[%emt 0:00:00]} 7. exf6 {[%emt 0:00:00]} Qxf6 {[%emt 0:00:
00]} 8. Nb3 {[%emt 0:00:00]} Bd6 {[%emt 0:00:00]} 9. Bg5 {[%emt 0:00:00]} Qg6 {
[%emt 0:00:00]} 10. h4 {[%emt 0:00:00]} O-O {[%emt 0:00:00]} 11. Bd3 {[%emt 0:
00:00]} Qe8 {[%emt 0:00:00]} 12. Qd2 {[%emt 0:00:00]} e5 {[%emt 0:00:00]} 13.
dxe5 {[%emt 0:00:00]} Ndxe5 {[%emt 0:00:00]} 14. O-O-O {[%emt 0:00:00]} Nxd3+ {
[%emt 0:00:00]} 15. Qxd3 {[%emt 0:00:00]} Nb4 {[%emt 0:00:00]} 16. Qd2 {
[%emt 0:00:00]} Nxa2+ {[%emt 0:00:00]} 17. Kb1 {[%emt 0:00:00]} Nb4 {[%emt 0:
00:00]} 18. Be3 {[%emt 0:00:00]} Qa4 {[%emt 0:00:00]} 19. Qc3 {[%emt 0:00:00]}
b6 {[%emt 0:00:00]} 20. h5 {[%emt 0:00:00]} Qa2+ {[%emt 0:00:00]} 21. Kc1 {
[%emt 0:00:00]} Qa4 {[%emt 0:00:00]} 22. Kb1 {[%emt 0:06:10]} Rxf3 23. gxf3 Bf5
24. Rd2 {[%emt 0:00:03]} c5 {[%emt 0:00:11]} 25. h6 {[%emt 0:00:05]} d4 {
[%emt 0:00:04]} 26. Qc4+ {[%emt 0:00:02]} 1/2-1/2